{"text_format":"1","workbook":"xlsx","n_sheets":6,"sheets":["使用上の注意","残高の集計方法","様式第8号　百万円","関係会社の範囲","添付資料①（4.貸付金の担保内訳）記載例および補足説明","添付資料②（4.貸付金の担保内訳）パターン別記載例"],"not_rendered":{"charts":0,"images":0,"macros":0,"external_links":0,"defined_names":2,"comments":0,"pivot_tables":0},"unopened":[],"bounds":{"document_bytes":16777216,"sheet_cells":100000,"rows_first":2000,"rows_last":500,"rows_between":2000,"halvings":0,"cell_chars":16384,"cell_head_chars":4096},"cells_cut":0,"cells_raw":0,"read":"whole","date_system":"1900"}

{"sheet":"使用上の注意","index":0,"n_rows":18,"n_cols":24,"rows_kept":18,"cut":false,"hidden":false,"merged":[[6,1,6,26],[0,0,0,26],[1,23,1,26],[2,1,2,26],[3,2,3,26],[4,2,4,26],[31,1,31,27],[7,2,7,26],[8,2,8,26],[10,1,10,26],[20,30,21,56],[24,1,24,27],[25,1,25,27],[26,1,26,27],[27,1,27,27],[28,1,28,27],[29,1,29,27],[30,1,30,27],[43,1,43,27],[32,1,32,27],[33,1,33,27],[34,1,34,27],[35,1,35,27],[36,1,36,27],[37,1,37,27],[38,1,38,27],[39,1,39,27],[40,1,40,27],[41,1,41,27],[42,1,42,27],[50,1,50,24],[51,1,51,24],[52,1,52,24],[53,1,53,24],[44,1,44,27],[45,1,45,27],[46,1,46,24],[47,1,47,24],[48,1,48,24],[49,1,49,24]]}
["本ファイル使用上の注意"]
[null,null,null,null,null,null,null,null,null,null,null,null,null,null,null,null,null,null,null,null,null,null,null,"令和６年４月１日改正版"]
["１．","　本様式は、全国共通版〔単位：百万円〕で、件数や残高、平均約定金利などの基本データを入力すれば、自動計算されます。"]
[null,"★","事業報告書の記載方法について、登録行政庁の指示や指導がある場合、それに従って計算式等について変更が必要になる場合があります。"]
[null,"★","登録行政庁によっては、金額の単位表記などについて個別の記載を求めている場合がありますので、その場合は表記等を修正して利用してください。"]
[]
["２．","　本書式は、参考として「計算式」を、また入力箇所以外の箇所は「シート保護」を設定しております。"]
[null,"★","計算式等の設定内容を変更･削除をされる場合は、「シート保護」を解除してください。"]
[null,"★","エクセルの基本的な使用方法（用語も含む。）や計算式・関数の内容に関する質問や相談には応じかねます。"]
[]
[null,"「シート保護」の解除･設定の仕方"]
[null,null,"【解除の仕方】"]
[null,null,null,"①メニューバーの[校閲] タブで、[シートの保護] をクリックします。"]
[null,null,null,"②パスワード保護のボタンをクリックします。"]
[null,null,null,"③[ シートの保護を解除 ]をクリックします。・・・パスワードの入力は不要です。"]
[null,null,"【設定の仕方】"]
[null,null,null,"①メニューバーの[校閲] タブで、[シートの解除] をクリックします。"]
[null,null,null,"②パスワード保護のボタンをクリックします。"]

{"sheet":"残高の集計方法","index":1,"n_rows":34,"n_cols":2,"rows_kept":34,"cut":false,"hidden":false,"merged":[[10,1,10,19],[0,0,0,19],[5,1,5,19],[6,1,6,19],[8,1,8,19],[9,1,9,19],[18,1,18,19],[21,1,21,19],[22,1,22,19],[23,1,23,19],[24,1,24,19],[11,1,11,19],[12,1,12,19],[15,1,15,19],[16,1,16,19],[17,1,17,19],[33,1,33,19],[27,1,27,19],[28,1,28,19],[29,1,29,19],[30,1,30,19],[31,1,31,19],[32,1,32,19]]}
["残高の集計方法等について"]
[]
[]
["１．業務報告書の残高集計に関する記載"]
[null,"◆業務報告書「目次」の記載上の注意４"]
[null,"　「各表の残高の単位（百万円、千円）未満の端数は、特に注記がない限り切り捨てて記載する。　"]
[null,"　このため、各表の残高内訳の合計は「合計」（又は「計」）欄の残高と合致しない場合がある。」"]
[null,"【ポイント】"]
[null,"　・各表の残高内訳欄については、それぞれ単位未満の端数を切り捨てて下さい。"]
[null,"　・各表の「計」や「合計」は、各社で集計した貸付金残高の合計額について単位未満の"]
[null,"　　端数を切り捨てて下さい。"]
[null,"　　※「計」や「合計」の残高は、残高内訳欄の数値の合計と異なる場合がありますので注意"]
[null,"　　　して下さい。"]
[]
["２．事業報告書の残高集計に関する扱い"]
[null,"・事業報告書の残高の集計方法も、前項記載の業務報告書と同じ扱いになります。"]
[null,"※各表の中にある集計等の関数は、あくまで参考として活用して下さい。従って、集計関数により"]
[null,"　表示された合計値についても、必ず前項所定の集計方法と計算結果が合致するか確認を行い、"]
[null,"　必要に応じて、加算や減算を行い、正しい数値となるように調整して下さい。"]
[]
["３．業務報告書と事業報告書の構成割合について"]
[null,"・上記１、２の集計方法をとるため、合計欄にある構成割合は、常に１００％（固定値）になります。"]
[null,"・残高内訳欄毎の構成割合は、残高内訳欄の切捨て処理した額（分子）を「合計」欄の額（分母）"]
[null,"　で除した数値となります。従って、残高内訳欄の各構成割合の数値を合算しても１００％になら"]
[null,"　ない場合があります。"]
[]
["４．業務報告書と事業報告書の残高について（償却前か償却後の数値か？）"]
[null,"・事業報告書では、表７の記載上の注意２において、「貸付金残高は、償却前の貸付金残高とする。」"]
[null,"　と表記されていますので、貸付金残高は「償却前」の数値を記載する必要があります。"]
[null,"・業務報告書については、目次の記載上の注意において、「法の規制を受ける貸付けについて、"]
[null,"　直近の３月３１日時点の計数等を記載する」とされているだけです。"]
[null,"　当然、３月決算以外の業者もありますので、償却が行われていない数値が前提になります。"]
[null,"　従いまして、業務報告書に記載する貸付金残高についても、事業報告書同様「償却前」の数値が　"]
[null,"　入ることになります。"]

{"sheet":"様式第8号　百万円","index":2,"n_rows":277,"n_cols":105,"rows_kept":277,"cut":false,"hidden":false,"merged":[[275,3,275,37],[173,24,173,29],[192,30,192,38],[193,30,193,38],[191,30,191,36],[185,37,185,38],[186,37,186,38],[189,37,189,38],[191,37,191,38],[187,27,187,29],[187,37,187,38],[187,1,187,15],[189,27,189,29],[184,1,185,15],[179,3,179,37],[191,27,191,29],[186,30,186,36],[187,30,187,36],[188,30,188,36],[186,27,186,29],[184,16,184,29],[186,16,186,26],[213,19,213,20],[210,19,210,20],[158,25,158,28],[183,16,183,29],[157,37,157,38],[172,17,172,21],[150,31,150,36],[166,23,166,38],[178,3,178,37],[173,17,173,21],[158,31,158,36],[157,31,157,36],[157,25,157,28],[169,17,169,21],[158,13,158,24],[151,13,151,24],[152,13,152,24],[155,1,156,10],[155,31,155,36],[171,9,171,15],[170,24,170,29],[168,1,170,8],[168,9,168,15],[169,10,169,14],[154,13,154,24],[183,30,183,38],[91,25,99,38],[92,15,92,24],[93,15,94,24],[95,15,96,24],[104,3,104,37],[109,23,109,27],[109,28,109,32],[108,1,109,6],[108,7,109,11],[108,12,109,16],[108,23,108,32],[97,15,97,24],[98,15,98,24],[113,33,113,38],[112,33,112,38],[110,28,110,32],[110,33,110,38],[110,23,110,27],[112,1,112,6],[112,7,112,11],[113,7,113,11],[111,33,111,38],[111,17,111,22],[110,17,110,22],[113,12,113,16],[113,17,113,22],[111,23,111,27],[112,23,112,27],[112,28,112,32],[112,12,112,16],[113,1,113,6],[111,28,111,32],[111,1,111,6],[7,20,7,21],[7,23,7,24],[19,21,20,38],[21,24,21,34],[35,24,35,34],[153,37,153,38],[155,37,155,38],[112,17,112,22],[113,23,113,27],[113,28,113,32],[115,33,115,38],[118,17,118,22],[83,15,83,38],[146,31,146,36],[24,17,25,19],[15,28,16,32],[151,37,151,38],[149,13,149,24],[135,31,135,36],[131,13,131,24],[145,13,145,24],[146,13,146,24],[140,13,140,24],[131,37,131,38],[153,13,153,24],[131,31,131,36],[133,37,133,38],[135,37,135,38],[141,13,141,24],[142,13,142,24],[129,29,130,38],[129,11,130,28],[123,3,123,37],[149,1,150,10],[145,37,145,38],[148,13,148,24],[125,3,125,37],[144,31,144,36],[143,37,143,38],[136,31,136,36],[166,1,167,8],[188,16,188,26],[172,24,172,29],[166,9,166,22],[168,31,168,38],[188,1,188,15],[168,16,168,22],[168,23,168,30],[185,16,185,26],[172,10,172,14],[171,16,171,22],[171,23,171,30],[170,10,170,14],[184,30,184,38],[185,30,185,36],[185,27,185,29],[24,22,25,32],[138,13,138,24],[190,30,190,36],[161,3,161,37],[189,30,189,36],[147,1,148,10],[143,31,143,36],[153,1,154,10],[169,24,169,29],[169,32,169,37],[170,32,170,37],[172,32,172,37],[150,13,150,24],[156,31,156,36],[153,31,153,36],[118,1,118,6],[28,18,28,21],[132,25,132,28],[140,31,140,36],[141,31,141,36],[145,31,145,36],[139,31,139,36],[170,17,170,21],[131,25,131,28],[157,1,158,10],[171,1,173,8],[157,13,157,24],[211,36,211,37],[210,32,210,33],[188,37,188,38],[171,31,171,38],[210,11,210,12],[211,11,211,12],[210,15,210,16],[211,15,211,16],[210,23,210,24],[211,23,211,24],[173,32,173,37],[173,10,173,14],[188,27,188,29],[183,1,183,15],[190,37,190,38],[177,3,177,37],[176,3,176,37],[189,1,189,15],[162,3,162,37],[167,16,167,22],[167,31,167,38],[211,19,211,20],[206,18,206,21],[193,16,193,26],[206,14,206,17],[197,3,197,37],[196,3,196,37],[205,5,206,9],[199,3,199,37],[207,5,209,9],[212,5,213,9],[212,15,212,16],[212,27,212,29],[213,27,213,29],[212,23,212,24],[213,23,213,24],[3,1,3,38],[41,1,41,38],[43,1,43,38],[69,1,69,38],[193,3,193,15],[209,32,209,33],[206,22,206,25],[190,3,190,15],[186,1,186,15],[187,16,187,26],[15,33,16,33],[15,34,16,37],[11,12,11,13],[209,27,209,29],[190,16,190,26],[192,27,192,29],[191,1,191,15],[192,1,192,15],[192,16,192,26],[191,16,191,26],[193,27,193,29],[208,27,208,29],[190,27,190,29],[137,13,137,24],[119,33,119,38],[118,12,118,16],[118,28,118,32],[189,16,189,26],[132,31,132,36],[132,13,132,24],[144,13,144,24],[138,31,138,36],[137,31,137,36],[133,31,133,36],[134,31,134,36],[151,31,151,36],[152,31,152,36],[137,37,137,38],[139,37,139,38],[141,37,141,38],[142,31,142,36],[143,13,143,24],[118,33,118,38],[119,7,119,11],[119,12,119,16],[119,17,119,22],[119,23,119,27],[119,28,119,32],[156,13,156,24],[154,31,154,36],[151,25,151,28],[152,25,152,28],[155,13,155,24],[151,1,152,10],[145,1,146,10],[147,13,147,24],[133,13,133,24],[134,13,134,24],[136,13,136,24],[124,3,124,37],[119,1,119,6],[147,37,147,38],[147,31,147,36],[149,31,149,36],[149,37,149,38],[148,31,148,36],[117,28,117,32],[129,1,130,10],[131,1,132,10],[139,1,140,10],[143,1,144,10],[133,3,134,10],[135,3,136,10],[137,3,138,10],[115,12,115,16],[117,7,117,11],[115,23,115,27],[117,17,117,22],[115,17,115,22],[135,13,135,24],[128,1,128,9],[139,13,139,24],[118,23,118,27],[118,7,118,11],[122,3,122,38],[88,15,88,24],[84,15,84,24],[85,25,85,31],[114,33,114,38],[114,23,114,27],[114,28,114,32],[117,33,117,38],[115,1,115,6],[116,33,116,38],[115,7,115,11],[114,1,114,6],[114,7,114,11],[114,12,114,16],[115,28,115,32],[117,1,117,6],[117,12,117,16],[117,23,117,27],[116,1,116,6],[116,7,116,11],[116,12,116,16],[116,17,116,22],[116,23,116,27],[116,28,116,32],[114,17,114,22],[30,44,31,44],[86,15,86,24],[86,25,86,31],[86,3,86,14],[85,15,85,24],[34,24,34,38],[71,16,71,18],[71,20,71,21],[71,23,71,24],[72,16,72,18],[72,20,72,21],[72,23,72,24],[85,1,85,14],[80,2,80,37],[84,25,84,31],[84,32,84,38],[75,1,78,38],[86,32,86,38],[85,32,85,38],[83,1,84,14],[6,11,7,12],[6,10,7,10],[6,13,7,13],[71,10,72,10],[71,13,72,13],[71,11,72,12],[33,24,33,38],[11,1,11,11],[15,38,16,38],[22,22,23,37],[21,20,21,23],[27,36,28,36],[27,23,28,34],[27,17,28,17],[6,16,6,18],[6,20,6,21],[6,23,6,24],[7,16,7,18],[63,7,65,39],[18,20,18,23],[18,24,18,27],[15,21,16,27],[24,34,25,34],[22,17,23,21],[276,3,276,37],[274,3,274,37],[88,3,88,14],[224,1,226,38],[229,3,229,37],[258,3,258,37],[257,3,257,37],[243,3,243,37],[247,1,254,38],[242,3,242,37],[232,1,239,38],[95,3,95,14],[91,1,91,14],[90,15,90,24],[90,1,90,14],[89,15,89,24],[89,32,89,38],[99,1,99,14],[89,25,89,31],[90,32,90,38],[91,15,91,24],[98,1,98,14],[97,3,97,14],[90,25,90,31],[218,3,218,37],[217,3,217,37],[216,3,216,37],[201,3,201,37],[212,11,212,12],[213,11,213,12],[208,15,208,16],[206,26,206,30],[213,15,213,16],[212,19,212,20],[205,10,205,30],[205,31,206,34],[205,35,206,38],[208,36,208,37],[209,36,209,37],[210,36,210,37],[212,36,212,37],[213,36,213,37],[210,27,210,29],[211,27,211,29],[211,32,211,33],[207,1,209,4],[207,35,207,38],[207,31,207,34],[262,1,271,38],[210,5,211,9],[209,15,209,16],[210,1,211,4],[212,1,213,4],[198,3,198,37],[200,3,200,37],[208,19,208,20],[208,32,208,33],[208,11,208,12],[219,3,219,37],[220,3,220,37],[209,23,209,24],[206,10,206,13],[212,32,212,33],[207,10,207,13],[207,14,207,17],[207,18,207,21],[207,22,207,25],[209,19,209,20],[207,26,207,30],[208,23,208,24],[209,11,209,12],[213,32,213,33],[89,3,89,14],[87,1,89,2],[93,3,93,14],[94,3,94,14],[92,3,92,14],[87,32,87,38],[88,32,88,38],[141,3,142,10],[96,3,96,14],[87,25,87,31],[87,3,87,14],[108,33,109,38],[111,7,111,11],[110,1,110,6],[110,7,110,11],[110,12,110,16],[111,12,111,16],[99,15,99,24],[102,3,102,37],[103,3,103,37],[107,1,107,9],[108,17,109,22],[88,25,88,31],[87,15,87,24]]}
[null,null,null,null,null,null,null,null,null,null,null,null,null,null,null,null,null,null,null,null,null,null,null,null,null,null,null,null,null,null,null,null,null,null,null,null,null,null,"（日本産業規格Ａ４）",null,null,null,null,null,null,null,null,null,null,null,null,null,null,null,null,null,null,null,null,null,null,null,null,null,null,null,null,null,null,null,null,null,null,null,null,null,null,null,null,null,null,null,null,null,null,null,null,null,null,null,null,null,null,null,null,null,null,null,null,null,null,null,null,null,"　"]
[null,"別紙様式第8号",null,null,null,null,null,"（第26条の29関係）",null,null,null,null,null,null,null,null,null,null,null,null,null,null,null,null,null,null,null,null,null,null,null,null,null,null,null,null,null,null,null,null,null,null,null,null,null,null,null,null,null,null,null,null,null,null,null,null,null,null,null,null,null,null,null,null,null,null,null,{"$f":"Q7","v":"00:00:00"},null,null,null,null,null,null,null,null,null,null,null,null,null,null,null,null,null,null,null,null,null,null,null,null,null,null,null,null,null,null,"(      )",null,null,null,null,null,"北海道財務局長"]
[null,null,null,null,null,null,null,null,null,null,null,null,null,null,null,null,null,null,null,null,null,null,null,null,null,null,null,null,null,null,null,null,null,null,null,null,null,null,null,null,null,null,null,null,null,null,null,null,null,null,null,null,null,null,null,null,null,null,null,null,null,null,null,null,null,null,null,{"$f":"Q7+365","v":"1900-12-30"},null,null,null,null,null,null,null,null,null,null,null,null,null,null,null,null,null,null,null,null,null,null,null,null,null,null,null,null,null,null,"(1)",null,null,null,null,null,"東北財務局長"]
[null,"事　　業　　報　　告　　書",null,null,null,null,null,null,null,null,null,null,null,null,null,null,null,null,null,null,null,null,null,null,null,null,null,null,null,null,null,null,null,null,null,null,null,null,null,null,null,null,null,null,null,null,null,null,null,null,null,null,null,null,null,null,null,null,null,null,null,null,null,null,null,null,null,{"$f":"IF((MONTH(BP2)+DAY(BP2))=(MONTH(BP3)+DAY(BP3)),-1,0)","v":0},null,null,null,null,null,null,null,null,null,null,null,null,null,null,null,null,null,null,null,null,null,null,null,null,null,null,null,null,null,null,"(2)",null,null,null,null,null,"関東財務局長"]
[null,null,null,null,null,null,null,null,null,null,null,null,null,null,null,null,null,null,null,null,null,null,null,null,null,null,null,null,null,null,null,null,null,null,null,null,null,null,null,null,null,null,null,null,null,null,null,null,null,null,null,null,null,null,null,null,null,null,null,null,null,null,null,null,null,null,null,null,null,null,null,null,null,null,null,null,null,null,null,null,null,null,null,null,null,null,null,null,null,null,null,null,null,null,null,null,null,null,"(3)",null,null,null,null,null,"東海財務局長"]
[null,null,null,null,null,null,null,null,null,null,null,null,null,null,null,null,null,null,null,null,null,null,null,null,null,null,null,null,null,null,null,null,null,null,null,null,null,null,null,null,null,null,null,null,null,null,null,null,null,null,null,null,null,null,null,null,null,null,null,null,null,null,null,null,null,null,null,null,null,null,null,null,null,null,null,null,null,null,null,null,null,null,null,null,null,null,null,null,null,null,null,null,null,null,null,null,null,null,"(4)",null,null,null,null,null,"北陸財務局長"]
[null,null,null,null,null,null,null,null,null,null,"第",null,null,"期",null,null,null,null,null,"年",null,null,"月",null,null,"日から",null,null,null,null,null,null,null,null,null,null,null,null,null,null,null,null,null,null,null,null,null,null,null,null,null,null,null,null,null,null,null,null,null,null,null,null,null,null,null,null,null,null,null,null,null,null,null,null,null,null,null,null,null,null,null,null,null,null,null,null,null,null,null,null,null,null,null,null,null,null,null,null,"(5)",null,null,null,null,null,"近畿財務局長"]
[null,null,null,null,null,null,null,null,null,null,null,null,null,null,null,null,null,null,null,"年",null,null,"月",null,null,"日まで",null,null,null,null,null,null,null,null,null,null,null,null,null,null,null,null,null,null,null,null,null,null,null,null,null,null,null,null,null,null,null,null,null,null,null,null,null,null,null,null,null,null,null,null,null,null,null,null,null,null,null,null,null,null,null,null,null,null,null,null,null,null,null,null,null,null,null,null,null,null,null,null,"(6)",null,null,null,null,null,"中国財務局長"]
[null,null,null,null,null,null,null,null,null,null,null,null,null,null,null,null,null,null,null,null,null,null,null,null,null,null,null,null,null,null,null,null,null,null,null,null,null,null,null,null,null,null,null,null,null,null,null,null,null,null,null,null,null,null,null,null,null,null,null,null,null,null,null,null,null,null,null,null,null,null,null,null,null,null,null,null,null,null,null,null,null,null,null,null,null,null,null,null,null,null,null,null,null,null,null,null,null,null,"(7)",null,null,null,null,null,"四国財務局長"]
[null,null,null,null,null,null,null,null,null,null,null,null,null,null,null,null,null,null,null,null,null,null,null,null,null,null,null,null,null,null,null,null,null,null,null,null,null,null,null,null,null,null,null,null,null,null,null,null,null,null,null,null,null,null,null,null,null,null,null,null,null,null,null,null,null,null,null,null,null,null,null,null,null,null,null,null,null,null,null,null,null,null,null,null,null,null,null,null,null,null,null,null,null,null,null,null,null,null,"(8)",null,null,null,null,null,"九州財務局長"]
[null,null,null,null,null,null,null,null,null,null,null,null,null,null,null,null,null,null,null,null,null,null,null,null,null,null,null,null,null,null,null,null,null,null,null,null,null,null,null,null,null,null,null,null,null,null,null,null,null,null,null,null,null,null,null,null,null,null,null,null,null,null,null,null,null,null,null,null,null,null,null,null,null,null,null,null,null,null,null,null,null,null,null,null,null,null,null,null,null,null,null,null,null,null,null,null,null,null,"(9)",null,null,null,null,null,"福岡財務支局長"]
[null,null,null,null,null,null,null,null,null,null,null,null,{"$f":"IF(B12=\"\",\"\",\"殿\")","v":""},null,null,null,null,null,null,null,null,null,null,null,null,null,null,null,null,null,null,null,null,null,null,null,null,null,null,null,null,null,null,null,null,null,null,null,null,null,null,null,null,null,null,null,null,null,null,null,null,null,null,null,null,null,null,null,null,null,null,null,null,null,null,null,null,null,null,null,null,null,null,null,null,null,null,null,null,null,null,null,null,null,null,null,null,null,"(10)",null,null,null,null,null,"沖縄総合事務局長"]
[null,null,null,null,null,null,null,null,null,null,null,null,null,null,null,null,null,null,null,null,null,null,null,null,null,null,null,null,null,null,null,null,null,null,null,null,null,null,null,null,null,null,null,null,null,null,null,null,null,null,null,null,null,null,null,null,null,null,null,null,null,null,null,null,null,null,null,null,null,null,null,null,null,null,null,null,null,null,null,null,null,null,null,null,null,null,null,null,null,null,null,null,null,null,null,null,null,null,"(11)",null,null,null,null,null,"北海道知事"]
[null,null,null,null,null,null,null,null,null,null,null,null,null,null,null,null,null,null,null,null,null,null,null,null,null,null,null,null,null,null,null,null,null,null,null,null,null,null,null,null,null,null,null,null,null,null,null,null,null,null,null,null,null,null,null,null,null,null,null,null,null,null,null,null,null,null,null,null,null,null,null,null,null,null,null,null,null,null,null,null,null,null,null,null,null,null,null,null,null,null,null,null,null,null,null,null,null,null,"(12)",null,null,null,null,null,"宮城県知事"]
[null,null,null,null,null,null,null,null,null,null,null,null,null,null,null,null,null,null,null,null,null,null,null,null,null,null,null,null,null,null,null,null,null,null,null,null,null,null,null,null,null,null,null,null,null,null,null,null,null,null,null,null,null,null,null,null,null,null,null,null,null,null,null,null,null,null,null,null,null,null,null,null,null,null,null,null,null,null,null,null,null,null,null,null,null,null,null,null,null,null,null,null,null,null,null,null,null,null,"(13)",null,null,null,null,null,"岩手県知事"]
[null,null,null,null,null,null,null,null,null,null,null,null,null,null,"届出者",null,null,"登録番号",null,null,null,"　",null,null,null,null,null,null,"(      )",null,null,null,null,"第",null,null,null,null,"号",null,null,null,null,null,null,null,null,null,null,null,null,null,null,null,null,null,null,null,null,null,null,null,null,null,null,null,null,null,null,null,null,null,null,null,null,null,null,null,null,null,null,null,null,null,null,null,null,null,null,null,null,null,null,null,null,null,null,null,"(14)",null,null,null,null,null,"福島県知事"]
[null,null,null,null,null,null,null,null,null,null,null,null,null,null,null,null,null,null,null,null,null,null,null,null,null,null,null,null,null,null,null,null,null,null,null,null,null,null,null,null,null,null,null,null,null,null,null,null,null,null,null,null,null,null,null,null,null,null,null,null,null,null,null,null,null,null,null,null,null,null,null,null,null,null,null,null,null,null,null,null,null,null,null,null,null,null,null,null,null,null,null,null,null,null,null,null,null,null,"(15)",null,null,null,null,null,"秋田県知事"]
[null,null,null,null,null,null,null,null,null,null,null,null,null,null,null,null,null,null,null,null,null,null,null,null,null,null,null,null,null,null,null,null,null,null,null,null,null,null,null,null,null,null,null,null,null,null,null,null,null,null,null,null,null,null,null,null,null,null,null,null,null,null,null,null,null,null,null,null,null,null,null,null,null,null,null,null,null,null,null,null,null,null,null,null,null,null,null,null,null,null,null,null,null,null,null,null,null,null,"(16)",null,null,null,null,null,"青森県知事"]
[null,null,null,null,null,null,null,null,null,null,null,null,null,null,null,null,null,null,null,null,"（郵便番号",null,null,null,null,null,null,null,"）",null,null,null,null,null,null,null,null,null,null,null,null,null,null,null,null,null,null,null,null,null,null,null,null,null,null,null,null,null,null,null,null,null,null,null,null,null,null,null,null,null,null,null,null,null,null,null,null,null,null,null,null,null,null,null,null,null,null,null,null,null,null,null,null,null,null,null,null,null,"(17)",null,null,null,null,null,"山形県知事"]
[null,null,null,null,null,null,null,null,null,null,null,null,null,null,null,null,null,"住　　所",null,null,null,null,null,null,null,null,null,null,null,null,null,null,null,null,null,null,null,null,null,null,null,null,null,null,null,null,null,null,null,null,null,null,null,null,null,null,null,null,null,null,null,null,null,null,null,null,null,null,null,null,null,null,null,null,null,null,null,null,null,null,null,null,null,null,null,null,null,null,null,null,null,null,null,null,null,null,null,null,"(18)",null,null,null,null,null,"東京都知事"]
[null,null,null,null,null,null,null,null,null,null,null,null,null,null,null,null,null,null,null,null,null,null,null,null,null,null,null,null,null,null,null,null,null,null,null,null,null,null,null,null,null,null,null,null,null,null,null,null,null,null,null,null,null,null,null,null,null,null,null,null,null,null,null,null,null,null,null,null,null,null,null,null,null,null,null,null,null,null,null,null,null,null,null,null,null,null,null,null,null,null,null,null,null,null,null,null,null,null,null,null,null,null,null,null,"神奈川県知事"]
[null,null,null,null,null,null,null,null,null,null,null,null,null,null,null,null,null,null,null,null,"電話番号",null,null,null,"（　　　　）　　　　－",null,null,null,null,null,null,null,null,null,null,null,null,null,null,null,null,null,null,null,null,null,null,null,null,null,null,null,null,null,null,null,null,null,null,null,null,null,null,null,null,null,null,null,null,null,null,null,null,null,null,null,null,null,null,null,null,null,null,null,null,null,null,null,null,null,null,null,null,null,null,null,null,null,null,null,null,null,null,null,"埼玉県知事"]
[null,null,null,null,null,null,null,null,null,null,null,null,null,null,null,null,null,"商　　号\n又は名称",null,null,null,null,null,null,null,null,null,null,null,null,null,null,null,null,null,null,null,null,null,null,null,null,null,null,null,null,null,null,null,null,null,null,null,null,null,null,null,null,null,null,null,null,null,null,null,null,null,null,null,null,null,null,null,null,null,null,null,null,null,null,null,null,null,null,null,null,null,null,null,null,null,null,null,null,null,null,null,null,null,null,null,null,null,null,"千葉県知事"]
[null,null,null,null,null,null,null,null,null,null,null,null,null,null,null,null,null,null,null,null,null,null,null,null,null,null,null,null,null,null,null,null,null,null,null,null,null,null,null,null,null,null,null,null,null,null,null,null,null,null,null,null,null,null,null,null,null,null,null,null,null,null,null,null,null,null,null,null,null,null,null,null,null,null,null,null,null,null,null,null,null,null,null,null,null,null,null,null,null,null,null,null,null,null,null,null,null,null,null,null,null,null,null,null,"山梨県知事"]
[null,null,null,null,null,null,null,null,null,null,null,null,null,null,null,null,null,"氏　　名",null,null,null,null,null,null,null,null,null,null,null,null,null,null,null,null,null,null,null,null,null,null,null,null,null,null,null,null,null,null,null,null,null,null,null,null,null,null,null,null,null,null,null,null,null,null,null,null,null,null,null,null,null,null,null,null,null,null,null,null,null,null,null,null,null,null,null,null,null,null,null,null,null,null,null,null,null,null,null,null,null,null,null,null,null,null,"栃木県知事"]
[null,null,null,null,null,null,null,null,null,null,null,null,null,null,null,null,null,null,null,null,null,null,null,null,null,null,null,null,null,null,null,null,null,null,null,null,null,null,null,null,null,null,null,null,null,null,null,null,null,null,null,null,null,null,null,null,null,null,null,null,null,null,null,null,null,null,null,null,null,null,null,null,null,null,null,null,null,null,null,null,null,null,null,null,null,null,null,null,null,null,null,null,null,null,null,null,null,null,null,null,null,null,null,null,"茨城県知事"]
[null,null,null,null,null,null,null,null,null,null,null,null,null,null,null,null,null,"（法人にあっては、代表者の氏名）",null,null,null,null,null,null,null,null,null,null,null,null,null,null,null,null,null,null,null,null,null,null,null,null,null,null,null,null,null,null,null,null,null,null,null,null,null,null,null,null,null,null,null,null,null,null,null,null,null,null,null,null,null,null,null,null,null,null,null,null,null,null,null,null,null,null,null,null,null,null,null,null,null,null,null,null,null,null,null,null,null,null,null,null,null,null,"群馬県知事"]
[null,null,null,null,null,null,null,null,null,null,null,null,null,null,null,null,null,null,"法定代理人",null,null,null,null,null,null,null,null,null,null,null,null,null,null,null,null,null,null,null,null,null,null,null,null,null,null,null,null,null,null,null,null,null,null,null,null,null,null,null,null,null,null,null,null,null,null,null,null,null,null,null,null,null,null,null,null,null,null,null,null,null,null,null,null,null,null,null,null,null,null,null,null,null,null,null,null,null,null,null,null,null,null,null,null,null,"新潟県知事"]
[null,null,null,null,null,null,null,null,null,null,null,null,null,null,null,null,null,null,"氏名、商号\n又は名称",null,null,null,null,null,null,null,null,null,null,null,null,null,null,null,null,null,null,null,null,null,null,null,null,null,null,null,null,null,null,null,null,null,null,null,null,null,null,null,null,null,null,null,null,null,null,null,null,null,null,null,null,null,null,null,null,null,null,null,null,null,null,null,null,null,null,null,null,null,null,null,null,null,null,null,null,null,null,null,null,null,null,null,null,null,"長野県知事"]
[null,null,null,null,null,null,null,null,null,null,null,null,null,null,null,null,null,null,null,null,null,null,null,null,null,null,null,null,null,null,null,null,null,null,null,null,null,null,null,null,null,null,null,null,null,null,null,null,null,null,null,null,null,null,null,null,null,null,null,null,null,null,null,null,null,null,null,null,null,null,null,null,null,null,null,null,null,null,null,null,null,null,null,null,null,null,null,null,null,null,null,null,null,null,null,null,null,null,null,null,null,null,null,null,"愛知県知事"]
[null,null,null,null,null,null,null,null,null,null,null,null,null,null,null,null,null,null,null,null,null,null,null,null,null,null,null,null,null,null,null,null,null,null,null,null,null,null,null,null,null,null,null,null,null,null,null,null,null,null,null,null,null,null,null,null,null,null,null,null,null,null,null,null,null,null,null,null,null,null,null,null,null,null,null,null,null,null,null,null,null,null,null,null,null,null,null,null,null,null,null,null,null,null,null,null,null,null,null,null,null,null,null,null,"静岡県知事"]
[null,null,null,null,null,null,null,null,null,null,null,null,null,null,null,null,null,null,null,null,null,null,null,null,null,null,null,null,null,null,null,null,null,null,null,null,null,null,null,null,null,null,null,null,null,null,null,null,null,null,null,null,null,null,null,null,null,null,null,null,null,null,null,null,null,null,null,null,null,null,null,null,null,null,null,null,null,null,null,null,null,null,null,null,null,null,null,null,null,null,null,null,null,null,null,null,null,null,null,null,null,null,null,null,"三重県知事"]
[null,null,null,null,null,null,null,null,null,null,null,null,null,null,null,null,null,null,null,null,null,null,null,null,null,null,null,null,null,null,null,null,null,null,null,null,null,null,null,null,null,null,null,null,null,null,null,null,null,null,null,null,null,null,null,null,null,null,null,null,null,null,null,null,null,null,null,null,null,null,null,null,null,null,null,null,null,null,null,null,null,null,null,null,null,null,null,null,null,null,null,null,null,null,null,null,null,null,null,null,null,null,null,null,"岐阜県知事"]
[null,null,null,null,null,null,null,null,null,null,null,null,null,null,null,null,"連 絡 者",null,null,null,"所　　属",null,null,null,null,null,null,null,null,null,null,null,null,null,null,null,null,null,null,null,null,null,null,null,null,null,null,null,null,null,null,null,null,null,null,null,null,null,null,null,null,null,null,null,null,null,null,null,null,null,null,null,null,null,null,null,null,null,null,null,null,null,null,null,null,null,null,null,null,null,null,null,null,null,null,null,null,null,null,null,null,null,null,null,"石川県知事"]
[null,null,null,null,null,null,null,null,null,null,null,null,null,null,null,null,null,null,null,null,"氏　　名",null,null,null,null,null,null,null,null,null,null,null,null,null,null,null,null,null,null,null,null,null,null,null,null,null,null,null,null,null,null,null,null,null,null,null,null,null,null,null,null,null,null,null,null,null,null,null,null,null,null,null,null,null,null,null,null,null,null,null,null,null,null,null,null,null,null,null,null,null,null,null,null,null,null,null,null,null,null,null,null,null,null,null,"福井県知事"]
[null,null,null,null,null,null,null,null,null,null,null,null,null,null,null,null,null,null,null,null,"電話番号",null,null,null,"（　　　　）　　　　－",null,null,null,null,null,null,null,null,null,null,null,null,null,null,null,null,null,null,null,null,null,null,null,null,null,null,null,null,null,null,null,null,null,null,null,null,null,null,null,null,null,null,null,null,null,null,null,null,null,null,null,null,null,null,null,null,null,null,null,null,null,null,null,null,null,null,null,null,null,null,null,null,null,null,null,null,null,null,null,"富山県知事"]
[null,null,null,null,null,null,null,null,null,null,null,null,null,null,null,null,null,null,null,null,null,null,null,null,null,null,null,null,null,null,null,null,null,null,null,null,null,null,null,null,null,null,null,null,null,null,null,null,null,null,null,null,null,null,null,null,null,null,null,null,null,null,null,null,null,null,null,null,null,null,null,null,null,null,null,null,null,null,null,null,null,null,null,null,null,null,null,null,null,null,null,null,null,null,null,null,null,null,null,null,null,null,null,null,"大阪府知事"]
[null,null,null,null,null,"（記載上の注意）",null,null,null,null,null,null,null,null,null,null,null,null,null,null,null,null,null,null,null,null,null,null,null,null,null,null,null,null,null,null,null,null,null,null,null,null,null,null,null,null,null,null,null,null,null,null,null,null,null,null,null,null,null,null,null,null,null,null,null,null,null,null,null,null,null,null,null,null,null,null,null,null,null,null,null,null,null,null,null,null,null,null,null,null,null,null,null,null,null,null,null,null,null,null,null,null,null,null,"京都府知事"]
[null,null,null,null,null,null,"「登録番号」の括弧書については、記載を省略することができる。",null,null,null,null,null,null,null,null,null,null,null,null,null,null,null,null,null,null,null,null,null,null,null,null,null,null,null,null,null,null,null,null,null,null,null,null,null,null,null,null,null,null,null,null,null,null,null,null,null,null,null,null,null,null,null,null,null,null,null,null,null,null,null,null,null,null,null,null,null,null,null,null,null,null,null,null,null,null,null,null,null,null,null,null,null,null,null,null,null,null,null,null,null,null,null,null,null,"兵庫県神戸県民センター長"]
[null,null,null,null,null,null,null,null,null,null,null,null,null,null,null,null,null,null,null,null,null,null,null,null,null,null,null,null,null,null,null,null,null,null,null,null,null,null,null,null,null,null,null,null,null,null,null,null,null,null,null,null,null,null,null,null,null,null,null,null,null,null,null,null,null,null,null,null,null,null,null,null,null,null,null,null,null,null,null,null,null,null,null,null,null,null,null,null,null,null,null,null,null,null,null,null,null,null,null,null,null,null,null,null,"兵庫県阪神南県民センター長"]
[null,null,null,null,null,null,null,null,null,null,null,null,null,null,null,null,null,null,null,null,null,null,null,null,null,null,null,null,null,null,null,null,null,null,null,null,null,null,null,null,null,null,null,null,null,null,null,null,null,null,null,null,null,null,null,null,null,null,null,null,null,null,null,null,null,null,null,null,null,null,null,null,null,null,null,null,null,null,null,null,null,null,null,null,null,null,null,null,null,null,null,null,null,null,null,null,null,null,null,null,null,null,null,null,"兵庫県中播磨県民センター長"]
[null,"事　　業　　報　　告　　書",null,null,null,null,null,null,null,null,null,null,null,null,null,null,null,null,null,null,null,null,null,null,null,null,null,null,null,null,null,null,null,null,null,null,null,null,null,null,null,null,null,null,null,null,null,null,null,null,null,null,null,null,null,null,null,null,null,null,null,null,null,null,null,null,null,null,null,null,null,null,null,null,null,null,null,null,null,null,null,null,null,null,null,null,null,null,null,null,null,null,null,null,null,null,null,null,null,null,null,null,null,null,"兵庫県阪神北県民局長"]
[null,null,null,null,null,null,null,null,null,null,null,null,null,null,null,null,null,null,null,null,null,null,null,null,null,null,null,null,null,null,null,null,null,null,null,null,null,null,null,null,null,null,null,null,null,null,null,null,null,null,null,null,null,null,null,null,null,null,null,null,null,null,null,null,null,null,null,null,null,null,null,null,null,null,null,null,null,null,null,null,null,null,null,null,null,null,null,null,null,null,null,null,null,null,null,null,null,null,null,null,null,null,null,null,"兵庫県東播磨県民局長"]
[null,"目　　次",null,null,null,null,null,null,null,null,null,null,null,null,null,null,null,null,null,null,null,null,null,null,null,null,null,null,null,null,null,null,null,null,null,null,null,null,null,null,null,null,null,null,null,null,null,null,null,null,null,null,null,null,null,null,null,null,null,null,null,null,null,null,null,null,null,null,null,null,null,null,null,null,null,null,null,null,null,null,null,null,null,null,null,null,null,null,null,null,null,null,null,null,null,null,null,null,null,null,null,null,null,null,"兵庫県北播磨県民局長"]
[null,null,null,null,null,null,null,null,null,null,null,null,null,null,null,null,null,null,null,null,null,null,null,null,null,null,null,null,null,null,null,null,null,null,null,null,null,null,null,null,null,null,null,null,null,null,null,null,null,null,null,null,null,null,null,null,null,null,null,null,null,null,null,null,null,null,null,null,null,null,null,null,null,null,null,null,null,null,null,null,null,null,null,null,null,null,null,null,null,null,null,null,null,null,null,null,null,null,null,null,null,null,null,null,"兵庫県西播磨県民局長"]
[null,null,null,null,null,null,null,null,null,null,null,null,null,null,null,null,null,null,null,null,null,null,null,null,null,null,null,null,null,null,null,null,null,null,null,null,null,null,null,null,null,null,null,null,null,null,null,null,null,null,null,null,null,null,null,null,null,null,null,null,null,null,null,null,null,null,null,null,null,null,null,null,null,null,null,null,null,null,null,null,null,null,null,null,null,null,null,null,null,null,null,null,null,null,null,null,null,null,null,null,null,null,null,null,"兵庫県但馬県民局長"]
[null,null,null,null,null,null,null,null,null,null,null,null,null,null,null,null,null,null,null,null,null,null,null,null,null,null,null,null,null,null,null,null,null,null,null,null,null,null,null,null,null,null,null,null,null,null,null,null,null,null,null,null,null,null,null,null,null,null,null,null,null,null,null,null,null,null,null,null,null,null,null,null,null,null,null,null,null,null,null,null,null,null,null,null,null,null,null,null,null,null,null,null,null,null,null,null,null,null,null,null,null,null,null,null,"兵庫県丹波県民局長"]
[null,null,null,null,null,"１",null,"貸金業務の概要",null,null,null,null,null,null,null,null,null,null,null,null,null,null,null,null,null,null,null,null,null,null,null,null,null,null,null,null,null,null,null,null,null,null,null,null,null,null,null,null,null,null,null,null,null,null,null,null,null,null,null,null,null,null,null,null,null,null,null,null,null,null,null,null,null,null,null,null,null,null,null,null,null,null,null,null,null,null,null,null,null,null,null,null,null,null,null,null,null,null,null,null,null,null,null,null,"兵庫県淡路県民局長"]
[null,null,null,null,null,"２",null,"役職員数、営業所・事務所数、提携先現金自動設備設置箇所数",null,null,null,null,null,null,null,null,null,null,null,null,null,null,null,null,null,null,null,null,null,null,null,null,null,null,null,null,null,null,null,null,null,null,null,null,null,null,null,null,null,null,null,null,null,null,null,null,null,null,null,null,null,null,null,null,null,null,null,null,null,null,null,null,null,null,null,null,null,null,null,null,null,null,null,null,null,null,null,null,null,null,null,null,null,null,null,null,null,null,null,null,null,null,null,null,"奈良県知事"]
[null,null,null,null,null,"３",null,"関係会社の状況",null,null,null,null,null,null,null,null,null,null,null,null,null,null,null,null,null,null,null,null,null,null,null,null,null,null,null,null,null,null,null,null,null,null,null,null,null,null,null,null,null,null,null,null,null,null,null,null,null,null,null,null,null,null,null,null,null,null,null,null,null,null,null,null,null,null,null,null,null,null,null,null,null,null,null,null,null,null,null,null,null,null,null,null,null,null,null,null,null,null,null,null,null,null,null,null,"和歌山県知事"]
[null,null,null,null,null,"４",null,"貸付金の担保内訳",null,null,null,null,null,null,null,null,null,null,null,null,null,null,null,null,null,null,null,null,null,null,null,null,null,null,null,null,null,null,null,null,null,null,null,null,null,null,null,null,null,null,null,null,null,null,null,null,null,null,null,null,null,null,null,null,null,null,null,null,null,null,null,null,null,null,null,null,null,null,null,null,null,null,null,null,null,null,null,null,null,null,null,null,null,null,null,null,null,null,null,null,null,null,null,null,"滋賀県知事"]
[null,null,null,null,null,"５",null,"貸付けの契約における公正証書の作成状況",null,null,null,null,null,null,null,null,null,null,null,null,null,null,null,null,null,null,null,null,null,null,null,null,null,null,null,null,null,null,null,null,null,null,null,null,null,null,null,null,null,null,null,null,null,null,null,null,null,null,null,null,null,null,null,null,null,null,null,null,null,null,null,null,null,null,null,null,null,null,null,null,null,null,null,null,null,null,null,null,null,null,null,null,null,null,null,null,null,null,null,null,null,null,null,null,"広島県知事"]
[null,null,null,null,null,"６",null,"資金調達の状況",null,null,null,null,null,null,null,null,null,null,null,null,null,null,null,null,null,null,null,null,null,null,null,null,null,null,null,null,null,null,null,null,null,null,null,null,null,null,null,null,null,null,null,null,null,null,null,null,null,null,null,null,null,null,null,null,null,null,null,null,null,null,null,null,null,null,null,null,null,null,null,null,null,null,null,null,null,null,null,null,null,null,null,null,null,null,null,null,null,null,null,null,null,null,null,null,"山口県知事"]
[null,null,null,null,null,"７",null,"延滞状況",null,null,null,null,null,null,null,null,null,null,null,null,null,null,null,null,null,null,null,null,null,null,null,null,null,null,null,null,null,null,null,null,null,null,null,null,null,null,null,null,null,null,null,null,null,null,null,null,null,null,null,null,null,null,null,null,null,null,null,null,null,null,null,null,null,null,null,null,null,null,null,null,null,null,null,null,null,null,null,null,null,null,null,null,null,null,null,null,null,null,null,null,null,null,null,null,"岡山県知事"]
[null,null,null,null,null,"８",null,"指定紛争解決機関との契約締結等の状況",null,null,null,null,null,null,null,null,null,null,null,null,null,null,null,null,null,null,null,null,null,null,null,null,null,null,null,null,null,null,null,null,null,null,null,null,null,null,null,null,null,null,null,null,null,null,null,null,null,null,null,null,null,null,null,null,null,null,null,null,null,null,null,null,null,null,null,null,null,null,null,null,null,null,null,null,null,null,null,null,null,null,null,null,null,null,null,null,null,null,null,null,null,null,null,null,"鳥取県知事"]
[null,null,null,null,null,"９",null,"社内規則等の整備及び改正状況",null,null,null,null,null,null,null,null,null,null,null,null,null,null,null,null,null,null,null,null,null,null,null,null,null,null,null,null,null,null,null,null,null,null,null,null,null,null,null,null,null,null,null,null,null,null,null,null,null,null,null,null,null,null,null,null,null,null,null,null,null,null,null,null,null,null,null,null,null,null,null,null,null,null,null,null,null,null,null,null,null,null,null,null,null,null,null,null,null,null,null,null,null,null,null,null,"島根県知事"]
[null,null,null,null,null,"10",null,"従業者に対する研修の実施状況",null,null,null,null,null,null,null,null,null,null,null,null,null,null,null,null,null,null,null,null,null,null,null,null,null,null,null,null,null,null,null,null,null,null,null,null,null,null,null,null,null,null,null,null,null,null,null,null,null,null,null,null,null,null,null,null,null,null,null,null,null,null,null,null,null,null,null,null,null,null,null,null,null,null,null,null,null,null,null,null,null,null,null,null,null,null,null,null,null,null,null,null,null,null,null,null,"香川県知事"]
[null,null,null,null,null,"11",null,"内部監査の実施状況",null,null,null,null,null,null,null,null,null,null,null,null,null,null,null,null,null,null,null,null,null,null,null,null,null,null,null,null,null,null,null,null,null,null,null,null,null,null,null,null,null,null,null,null,null,null,null,null,null,null,null,null,null,null,null,null,null,null,null,null,null,null,null,null,null,null,null,null,null,null,null,null,null,null,null,null,null,null,null,null,null,null,null,null,null,null,null,null,null,null,null,null,null,null,null,null,"愛媛県知事"]
[null,null,null,null,null,null,null,null,null,null,null,null,null,null,null,null,null,null,null,null,null,null,null,null,null,null,null,null,null,null,null,null,null,null,null,null,null,null,null,null,null,null,null,null,null,null,null,null,null,null,null,null,null,null,null,null,null,null,null,null,null,null,null,null,null,null,null,null,null,null,null,null,null,null,null,null,null,null,null,null,null,null,null,null,null,null,null,null,null,null,null,null,null,null,null,null,null,null,null,null,null,null,null,null,"愛媛県中予地方局長"]
[null,null,null,null,null,null,null,null,null,null,null,null,null,null,null,null,null,null,null,null,null,null,null,null,null,null,null,null,null,null,null,null,null,null,null,null,null,null,null,null,null,null,null,null,null,null,null,null,null,null,null,null,null,null,null,null,null,null,null,null,null,null,null,null,null,null,null,null,null,null,null,null,null,null,null,null,null,null,null,null,null,null,null,null,null,null,null,null,null,null,null,null,null,null,null,null,null,null,null,null,null,null,null,null,"愛媛県東予地方局長"]
[null,null,null,null,null,null,null,null,null,null,null,null,null,null,null,null,null,null,null,null,null,null,null,null,null,null,null,null,null,null,null,null,null,null,null,null,null,null,null,null,null,null,null,null,null,null,null,null,null,null,null,null,null,null,null,null,null,null,null,null,null,null,null,null,null,null,null,null,null,null,null,null,null,null,null,null,null,null,null,null,null,null,null,null,null,null,null,null,null,null,null,null,null,null,null,null,null,null,null,null,null,null,null,null,"愛媛県南予地方局長"]
[null,null,null,null,null,null,"（記載上の注意）",null,null,null,null,null,null,null,null,null,null,null,null,null,null,null,null,null,null,null,null,null,null,null,null,null,null,null,null,null,null,null,null,null,null,null,null,null,null,null,null,null,null,null,null,null,null,null,null,null,null,null,null,null,null,null,null,null,null,null,null,null,null,null,null,null,null,null,null,null,null,null,null,null,null,null,null,null,null,null,null,null,null,null,null,null,null,null,null,null,null,null,null,null,null,null,null,null,"徳島県知事"]
[null,null,null,null,null,null,"１",null,"記載基準日は事業年度の末日とする。",null,null,null,null,null,null,null,null,null,null,null,null,null,null,null,null,null,null,null,null,null,null,null,null,null,null,null,null,null,null,null,null,null,null,null,null,null,null,null,null,null,null,null,null,null,null,null,null,null,null,null,null,null,null,null,null,null,null,null,null,null,null,null,null,null,null,null,null,null,null,null,null,null,null,null,null,null,null,null,null,null,null,null,null,null,null,null,null,null,null,null,null,null,null,null,"高知県知事"]
[null,null,null,null,null,null,"２","　法第４条第１項の登録申請書又は法第８条第１項の規定による届出書に旧氏及び名を併せて記載して提出した者については、これらの書類に記載した当該旧氏及び名を変更する旨を届け出るまでの間、届出者の「氏名」欄に当該旧氏及び名を括弧書で併せて記載し、又は当該旧氏及び名のみを記載することができる。",null,null,null,null,null,null,null,null,null,null,null,null,null,null,null,null,null,null,null,null,null,null,null,null,null,null,null,null,null,null,null,null,null,null,null,null,null,null,null,null,null,null,null,null,null,null,null,null,null,null,null,null,null,null,null,null,null,null,null,null,null,null,null,null,null,null,null,null,null,null,null,null,null,null,null,null,null,null,null,null,null,null,null,null,null,null,null,null,null,null,null,null,null,null,null,null,"熊本県知事"]
[null,null,null,null,null,null,null,null,null,null,null,null,null,null,null,null,null,null,null,null,null,null,null,null,null,null,null,null,null,null,null,null,null,null,null,null,null,null,null,null,null,null,null,null,null,null,null,null,null,null,null,null,null,null,null,null,null,null,null,null,null,null,null,null,null,null,null,null,null,null,null,null,null,null,null,null,null,null,null,null,null,null,null,null,null,null,null,null,null,null,null,null,null,null,null,null,null,null,null,null,null,null,null,null,"大分県知事"]
[null,null,null,null,null,null,null,null,null,null,null,null,null,null,null,null,null,null,null,null,null,null,null,null,null,null,null,null,null,null,null,null,null,null,null,null,null,null,null,null,null,null,null,null,null,null,null,null,null,null,null,null,null,null,null,null,null,null,null,null,null,null,null,null,null,null,null,null,null,null,null,null,null,null,null,null,null,null,null,null,null,null,null,null,null,null,null,null,null,null,null,null,null,null,null,null,null,null,null,null,null,null,null,null,"鹿児島県知事"]
[null,null,null,null,null,null,"３",null,"「連絡者」は、事業報告書の作成担当者を記載する。",null,null,null,null,null,null,null,null,null,null,null,null,null,null,null,null,null,null,null,null,null,null,null,null,null,null,null,null,null,null,null,null,null,null,null,null,null,null,null,null,null,null,null,null,null,null,null,null,null,null,null,null,null,null,null,null,null,null,null,null,null,null,null,null,null,null,null,null,null,null,null,null,null,null,null,null,null,null,null,null,null,null,null,null,null,null,null,null,null,null,null,null,null,null,null,"宮崎県知事"]
[null,null,null,null,null,null,null,null,null,null,null,null,null,null,null,null,null,null,null,null,null,null,null,null,null,null,null,null,null,null,null,null,null,null,null,null,null,null,null,null,null,null,null,null,null,null,null,null,null,null,null,null,null,null,null,null,null,null,null,null,null,null,null,null,null,null,null,null,null,null,null,null,null,null,null,null,null,null,null,null,null,null,null,null,null,null,null,null,null,null,null,null,null,null,null,null,null,null,null,null,null,null,null,null,"福岡県知事"]
[null,null,null,null,null,null,null,null,null,null,null,null,null,null,null,null,null,null,null,null,null,null,null,null,null,null,null,null,null,null,null,null,null,null,null,null,null,null,null,null,null,null,null,null,null,null,null,null,null,null,null,null,null,null,null,null,null,null,null,null,null,null,null,null,null,null,null,null,null,null,null,null,null,null,null,null,null,null,null,null,null,null,null,null,null,null,null,null,null,null,null,null,null,null,null,null,null,null,null,null,null,null,null,null,"佐賀県知事"]
[null,"事　　業　　報　　告　　書",null,null,null,null,null,null,null,null,null,null,null,null,null,null,null,null,null,null,null,null,null,null,null,null,null,null,null,null,null,null,null,null,null,null,null,null,null,null,null,null,null,null,null,null,null,null,null,null,null,null,null,null,null,null,null,null,null,null,null,null,null,null,null,null,null,null,null,null,null,null,null,null,null,null,null,null,null,null,null,null,null,null,null,null,null,null,null,null,null,null,null,null,null,null,null,null,null,null,null,null,null,null,"長崎県知事"]
[null,null,null,null,null,null,null,null,null,null,null,null,null,null,null,null,null,null,null,null,null,null,null,null,null,null,null,null,null,null,null,null,null,null,null,null,null,null,null,null,null,null,null,null,null,null,null,null,null,null,null,null,null,null,null,null,null,null,null,null,null,null,null,null,null,null,null,null,null,null,null,null,null,null,null,null,null,null,null,null,null,null,null,null,null,null,null,null,null,null,null,null,null,null,null,null,null,null,null,null,null,null,null,null,"沖縄県知事"]
[null,null,null,null,null,null,null,null,null,null,"第",{"$f":"$L$7","v":0},null,"期",null,null,{"$f":"$Q$7","v":0},null,null,"年",{"$f":"$U$7","v":0},null,"月",{"$f":"$X$7","v":0},null,"日から"]
[null,null,null,null,null,null,null,null,null,null,null,null,null,null,null,null,{"$f":"$Q$8","v":0},null,null,"年",{"$f":"$U$8","v":0},null,"月",{"$f":"$X$8","v":0},null,"日まで"]
[]
[null,"１　貸金業務の概要"]
[]
[]
[]
[]
[null,null,"（記載上の注意）"]
[null,null,"　貸金業務の位置付け（当該貸金業者の業務全体に占める貸金業務の状況）、貸金業務の営業状況の推移（貸付残高の対前期増減額及び増減率並びに増減の主な理由）及び海外における事業展開等（進出国、拠点数、業務内容等）について簡潔に記載する。　"]
[]
[null,"２　役職員数、営業所・事務所数、提携先現金自動設備設置箇所数"]
[null,"区　　　　　　　分",null,null,null,null,null,null,null,null,null,null,null,null,null,"人　　　数　　　等"]
[null,null,null,null,null,null,null,null,null,null,null,null,null,null,null,null,null,null,null,null,null,null,null,null,null,"うち個人",null,null,null,null,null,null,"うち法人"]
[null,"役　　　　　　　　員",null,null,null,null,null,null,null,null,null,null,null,null,null,null,null,null,null,null,null,null,null,null,null,{"$f":"P86","v":0},null,null,null,null,null,null,{"$f":"P86-Z86","v":0}]
[null,null,null,"う　ち　常　勤　役　員",null,null,null,null,null,null,null,null,null,null,null,null,null,null,null,null,null,null,null,null,null,{"$f":"P87","v":0},null,null,null,null,null,null,{"$f":"P87-Z87","v":0}]
[null,"従\n業\n員",null,"職　　　　　　　　　員",null,null,null,null,null,null,null,null,null,null,null,null,null,null,null,null,null,null,null,null,null,{"$f":"P88","v":0}]
[null,null,null,"そ　　　　の　　　　他",null,null,null,null,null,null,null,null,null,null,null,null,null,null,null,null,null,null,null,null,null,{"$f":"P89","v":0}]
[null,null,null,"計",null,null,null,null,null,null,null,null,null,null,null,{"$f":"SUM(P88:Y89)","v":0},null,null,null,null,null,null,null,null,null,{"$f":"SUM(Z88:Z89)","v":0}]
[null,"合　　　　　　　　　計",null,null,null,null,null,null,null,null,null,null,null,null,null,{"$f":"P90+P86","v":0},null,null,null,null,null,null,null,null,null,{"$f":"Z90+Z86","v":0},null,null,null,null,null,null,{"$f":"AG86","v":0}]
[null,"営　業　所　・　事　務　所"]
[null,null,null,"有人営業所・事務所",null,null,null,null,null,null,null,null,null,null,null,1]
[null,null,null,"営業所・事務所外",null,null,null,null,null,null,null,null,null,null,null,0]
[null,null,null,"自動契約機設置箇所"]
[null,null,null,"営業所・事務所外現金",null,null,null,null,null,null,null,null,null,null,null,0]
[null,null,null,"自動設備自社設置箇所"]
[null,null,null,"代　　　理　　　店",null,null,null,null,null,null,null,null,null,null,null,0]
[null,"合　　　　　　　　　計",null,null,null,null,null,null,null,null,null,null,null,null,null,{"$f":"SUM(P93:P98)","v":1}]
[null,"提携先現金自動設備設置箇所",null,null,null,null,null,null,null,null,null,null,null,null,null,0]
[]
[null,null,"（記載上の注意）"]
[null,null,"１","　個人の場合は、役員欄、従業員欄にそれぞれ経営者数、使用人数を記載する。"]
[null,null,"２","　営業所・事務所外自動契約機設置箇所の欄には、有人営業所・事務所内及び代理店内に設置されているものを除いた数を記載する。"]
[null,null,"３","　営業所・事務所外現金自動設備自社設置箇所の欄には、有人営業所・事務所内、営業所・事務所外自動契約機設置箇所内及び代理店内に設置されているものを除いた数を記載する。"]
[]
[]
[null,"３　関係会社の状況"]
[null,"名　称",null,null,null,null,null,"住　所",null,null,null,null,"資本金\n又は\n出資金\n（百万円）",null,null,null,null,"主要な事業\nの内容",null,null,null,null,null,"議決権の所有又は\n被所有割合",null,null,null,null,null,null,null,null,null,"関係内容"]
[null,null,null,null,null,null,null,null,null,null,null,null,null,null,null,null,null,null,null,null,null,null,null,"所有割合(%)",null,null,null,null,"被所有割合(%)"]
[]
[]
[]
[]
[]
[]
[]
[]
[]
[]
[]
[null,null,"（記載上の注意）"]
[null,null,"１","　「関係会社」とは、「財務諸表等の用語、様式及び作成方法に関する規則」（昭和38年大蔵省令第59号）第８条第８項における関係会社をいう。"]
[null,null,"２","　「議決権の所有又は被所有割合」は、小数点第３位以下を切り捨てて表示する。"]
[null,null,"３","　「住所」には、国内の関係会社は市区町村名までを記載し、海外の関係会社は都市名までを記載する。"]
[null,null,"４","　「関係内容」には、役職員の兼任や資金援助、営業上の取引状況等について記載する。"]
[]
[]
[null,"４　貸付金の担保内訳"]
[null,"受入担保の種類",null,null,null,null,null,null,null,null,null,"残　　　　　高",null,null,null,null,null,null,null,null,null,null,null,null,null,null,null,null,null,"構　成　割　合"]
[]
[null,"有価証券",null,null,null,null,null,null,null,null,null,null,null,null,null,null,null,null,null,null,null,null,null,null,null,{"$f":"Z152","v":"百万円"},null,null,null,null,null,{"$f":"IF(ISERROR(N132/$N$158),0,ROUNDDOWN(N132/$N$158,4))","v":0}]
[null,null,null,null,null,null,null,null,null,null,null,null,"（",null,null,null,null,null,null,null,null,null,null,null,null,{"$f":"Z153","v":"百万円）"},null,null,null,null,"（",{"$f":"IF(ISERROR(N133/$N$159),0,ROUNDDOWN(N133/$N$159,4))","v":0},null,null,null,null,null,"）"]
[null,null,null,"うち手形",null,null,null,null,null,null,null,null,null,null,null,null,null,null,null,null,null,null,null,null,null,null,null,null,null,null,null,{"$f":"IF(ISERROR(N134/$N$158),0,ROUNDDOWN(N134/$N$158,4))","v":0}]
[null,null,null,null,null,null,null,null,null,null,null,null,"（",null,null,null,null,null,null,null,null,null,null,null,null,"　　　）",null,null,null,null,"（",{"$f":"IF(ISERROR(N135/$N$159),0,ROUNDDOWN(N135/$N$159,4))","v":0},null,null,null,null,null,"）"]
[null,null,null,"うち小切手",null,null,null,null,null,null,null,null,null,null,null,null,null,null,null,null,null,null,null,null,null,null,null,null,null,null,null,{"$f":"IF(ISERROR(N136/$N$158),0,ROUNDDOWN(N136/$N$158,4))","v":0}]
[null,null,null,null,null,null,null,null,null,null,null,null,"（",null,null,null,null,null,null,null,null,null,null,null,null,"　　　）",null,null,null,null,"（",{"$f":"IF(ISERROR(N137/$N$159),0,ROUNDDOWN(N137/$N$159,4))","v":0},null,null,null,null,null,"）"]
[null,null,null,"うち株式",null,null,null,null,null,null,null,null,null,null,null,null,null,null,null,null,null,null,null,null,null,null,null,null,null,null,null,{"$f":"IF(ISERROR(N138/$N$158),0,ROUNDDOWN(N138/$N$158,4))","v":0}]
[null,null,null,null,null,null,null,null,null,null,null,null,"（",null,null,null,null,null,null,null,null,null,null,null,null,"　　　）",null,null,null,null,"（",{"$f":"IF(ISERROR(N139/$N$159),0,ROUNDDOWN(N139/$N$159,4))","v":0},null,null,null,null,null,"）"]
[null,"債権",null,null,null,null,null,null,null,null,null,null,null,null,null,null,null,null,null,null,null,null,null,null,null,null,null,null,null,null,null,{"$f":"IF(ISERROR(N140/$N$158),0,ROUNDDOWN(N140/$N$158,4))","v":0}]
[null,null,null,null,null,null,null,null,null,null,null,null,"（",null,null,null,null,null,null,null,null,null,null,null,null,"　　　）",null,null,null,null,"（",{"$f":"IF(ISERROR(N141/$N$159),0,ROUNDDOWN(N141/$N$159,4))","v":0},null,null,null,null,null,"）"]
[null,null,null,"うち預金",null,null,null,null,null,null,null,null,null,null,null,null,null,null,null,null,null,null,null,null,null,null,null,null,null,null,null,{"$f":"IF(ISERROR(N142/$N$158),0,ROUNDDOWN(N142/$N$158,4))","v":0}]
[null,null,null,null,null,null,null,null,null,null,null,null,"（",null,null,null,null,null,null,null,null,null,null,null,null,"　　　）",null,null,null,null,"（",{"$f":"IF(ISERROR(N143/$N$159),0,ROUNDDOWN(N143/$N$159,4))","v":0},null,null,null,null,null,"）"]
[null,"商品",null,null,null,null,null,null,null,null,null,null,null,null,null,null,null,null,null,null,null,null,null,null,null,null,null,null,null,null,null,{"$f":"IF(ISERROR(N144/$N$158),0,ROUNDDOWN(N144/$N$158,4))","v":0}]
[null,null,null,null,null,null,null,null,null,null,null,null,"（",null,null,null,null,null,null,null,null,null,null,null,null,"　　　）",null,null,null,null,"（",{"$f":"IF(ISERROR(N145/$N$159),0,ROUNDDOWN(N145/$N$159,4))","v":0},null,null,null,null,null,"）"]
[null,"不動産",null,null,null,null,null,null,null,null,null,null,null,null,null,null,null,null,null,null,null,null,null,null,null,null,null,null,null,null,null,{"$f":"IF(ISERROR(N146/$N$158),0,ROUNDDOWN(N146/$N$158,4))","v":0}]
[null,null,null,null,null,null,null,null,null,null,null,null,"（",null,null,null,null,null,null,null,null,null,null,null,null,"　　　）",null,null,null,null,"（",{"$f":"IF(ISERROR(N147/$N$159),0,ROUNDDOWN(N147/$N$159,4))","v":0},null,null,null,null,null,"）"]
[null,"財団",null,null,null,null,null,null,null,null,null,null,null,null,null,null,null,null,null,null,null,null,null,null,null,null,null,null,null,null,null,{"$f":"IF(ISERROR(N148/$N$158),0,ROUNDDOWN(N148/$N$158,4))","v":0}]
[null,null,null,null,null,null,null,null,null,null,null,null,"（",null,null,null,null,null,null,null,null,null,null,null,null,"　　　）",null,null,null,null,"（",{"$f":"IF(ISERROR(N149/$N$159),0,ROUNDDOWN(N149/$N$159,4))","v":0},null,null,null,null,null,"）"]
[null,"その他",null,null,null,null,null,null,null,null,null,null,null,null,null,null,null,null,null,null,null,null,null,null,null,null,null,null,null,null,null,{"$f":"IF(ISERROR(N150/$N$158),0,ROUNDDOWN(N150/$N$158,4))","v":0}]
[null,null,null,null,null,null,null,null,null,null,null,null,"（",null,null,null,null,null,null,null,null,null,null,null,null,"　　　）",null,null,null,null,"（",{"$f":"IF(ISERROR(N151/$N$159),0,ROUNDDOWN(N151/$N$159,4))","v":0},null,null,null,null,null,"）"]
[null,"計",null,null,null,null,null,null,null,null,null,null,null,{"$f":"SUM(N132)+SUM(N148)+SUM(N146)+SUM(N144)+SUM(N140)+SUM(N150)","v":0},null,null,null,null,null,null,null,null,null,null,null,{"$f":"Z158","v":"百万円"},null,null,null,null,null,{"$f":"SUM(AF150)+SUM(AF148)+SUM(AF146)+SUM(AF144)+SUM(AF140)+SUM(AF132)","v":0}]
[null,null,null,null,null,null,null,null,null,null,null,null,"（",{"$f":"SUM(N151)+SUM(N149)+SUM(N147)+SUM(N145)+SUM(N141)+SUM(N133)","v":0},null,null,null,null,null,null,null,null,null,null,null,{"$f":"Z159","v":"百万円）"},null,null,null,null,"（",{"$f":"SUM(AF151)+SUM(AF149)+SUM(AF147)+SUM(AF145)+SUM(AF141)+SUM(AF133)","v":0},null,null,null,null,null,"）"]
[null,"保証",null,null,null,null,null,null,null,null,null,null,null,null,null,null,null,null,null,null,null,null,null,null,null,null,null,null,null,null,null,{"$f":"IF(ISERROR(N154/$N$158),0,ROUNDDOWN(N154/$N$158,4))","v":0}]
[null,null,null,null,null,null,null,null,null,null,null,null,"（","-",null,null,null,null,null,null,null,null,null,null,null,"　　　）",null,null,null,null,"（",{"$f":"IF(ISERROR(N155/$N$159),0,ROUNDDOWN(N155/$N$159,4))","v":0},null,null,null,null,null,"）"]
[null,"無担保",null,null,null,null,null,null,null,null,null,null,null,null,null,null,null,null,null,null,null,null,null,null,null,null,null,null,null,null,null,{"$f":"IF(ISERROR(N156/$N$158),0,ROUNDDOWN(N156/$N$158,4))","v":0}]
[null,null,null,null,null,null,null,null,null,null,null,null,"（","-",null,null,null,null,null,null,null,null,null,null,null,"　　　）",null,null,null,null,"（",{"$f":"IF(ISERROR(N157/$N$159),0,ROUNDDOWN(N157/$N$159,4))","v":0},null,null,null,null,null,"）"]
[null,"合計",null,null,null,null,null,null,null,null,null,null,null,{"$f":"SUM(N156)+SUM(N154)+SUM(N152)","v":0},null,null,null,null,null,null,null,null,null,null,null,{"$f":"X169","v":"百万円"},null,null,null,null,null,1]
[null,null,null,null,null,null,null,null,null,null,null,null,"（",{"$f":"SUM(N157)+SUM(N155)+SUM(N153)","v":0},null,null,null,null,null,null,null,null,null,null,null,{"$f":"X169&\"）\"","v":"百万円）"},null,null,null,null,"（",1,null,null,null,null,null,"）"]
[]
[null,null,"（記載上の注意）"]
[null,null,"１","　２種類以上の担保がある貸付金については、この様式に掲げている受入担保の種類の配列順にしたがって、担保の評価額を限度として充当計上する。"]
[null,null,"２","　括弧内には、利息制限法の上限金利を超過した金銭の貸付けにおける担保内訳について記載する。"]
[]
[]
[null,"５　貸付けの契約における公正証書の作成状況"]
[null,"　　　　件数・金額\n\n 契約種別",null,null,null,null,null,null,null,"件　　　数",null,null,null,null,null,null,null,null,null,null,null,null,null,"金　　　　額"]
[null,null,null,null,null,null,null,null,null,null,null,null,null,null,null,null,"うち特定公正証書",null,null,null,null,null,null,null,null,null,null,null,null,null,null,"うち特定公正証書"]
[null,"貸付けに係る契約",null,null,null,null,null,null,null,"件",null,null,null,null,null,null,"件",null,null,null,null,null,null,{"$f":"AF169","v":"百万円"},null,null,null,null,null,null,null,{"$f":"X172","v":"百万円"}]
[]
[null,null,null,null,null,null,null,null,null,"（",null,null,null,null,null,"）","（",null,null,null,null,null,"）","（",null,null,null,null,null,null,"）","（",null,null,null,null,null,null,"）"]
[null,"保　証　契　約",null,null,null,null,null,null,null,"件",null,null,null,null,null,null,"件",null,null,null,null,null,null,{"$f":"AF172","v":"百万円"},null,null,null,null,null,null,null,{"$f":"Q185","v":"百万円"}]
[]
[null,null,null,null,null,null,null,null,null,"（",null,null,null,null,null,"）","（",null,null,null,null,null,"）","（",null,null,null,null,null,null,"）","（",null,null,null,null,null,null,"）"]
[]
[null,null,"（記載上の注意）"]
[null,null,"１","　事業報告書作成時点で貸付残高のある貸付契約に関して作成された公正証書について計上すること。"]
[null,null,"２","　「金額」は、公正証書に記載された金額について記載する。"]
[null,null,"３","　「特定公正証書」とは、法第20条第１項における特定公正証書をいう。"]
[null,null,"４","　括弧内には、貸金業法施行前に締結された契約で、利息制限法の上限金利を超過した貸付けに係る契約若しくは貸付けに係る契約に係る保証契約について、公正証書を作成した件数及び額面を記載する。"]
[]
[]
[null,"６　資金調達の状況"]
[null,"借　　入　　先　　等",null,null,null,null,null,null,null,null,null,null,null,null,null,null,"残　　　　　高",null,null,null,null,null,null,null,null,null,null,null,null,null,"平均調達金利"]
[null,"１　金　　融　　機　　関\n",null,null,null,null,null,null,null,null,null,null,null,null,null,null,{"$f":"AB192","v":"百万円"},null,null,null,null,null,null,null,null,null,null,null,null,null,"％"]
[null,null,null,null,null,null,null,null,null,null,null,null,null,null,null,null,null,null,null,null,null,null,null,null,null,null,null,{"$f":"IF(ISERROR(Q186/$Q$192),0,ROUNDDOWN(Q186/$Q$192,4))","v":0},null,null,null,null,null,null,null,null,null,null,null,{"$f":"IF(ISERROR(AB186*AE186),0,ROUNDDOWN(AB186*AE186,4))","v":0}]
[null,"２　関　　係　　会　　社\n（金融機関を除く。）",null,null,null,null,null,null,null,null,null,null,null,null,null,null,null,null,null,null,null,null,null,null,null,null,null,{"$f":"IF(ISERROR(Q187/$Q$192),0,ROUNDDOWN(Q187/$Q$192,4))","v":0},null,null,null,null,null,null,null,null,null,null,null,{"$f":"IF(ISERROR(AB187*AE187),0,ROUNDDOWN(AB187*AE187,4))","v":0}]
[null,"３　事　　業　　会　　社\n（信販・リース会社を含む。）",null,null,null,null,null,null,null,null,null,null,null,null,null,null,null,null,null,null,null,null,null,null,null,null,null,{"$f":"IF(ISERROR(Q188/$Q$192),0,ROUNDDOWN(Q188/$Q$192,4))","v":0},null,null,null,null,null,null,null,null,null,null,null,{"$f":"IF(ISERROR(AB188*AE188),0,ROUNDDOWN(AB188*AE188,4))","v":0}]
[null,"４　個　　　　　　　　人",null,null,null,null,null,null,null,null,null,null,null,null,null,null,null,null,null,null,null,null,null,null,null,null,null,{"$f":"IF(ISERROR(Q189/$Q$192),0,ROUNDDOWN(Q189/$Q$192,4))","v":0},null,null,null,null,null,null,null,null,null,null,null,{"$f":"IF(ISERROR(AB189*AE189),0,ROUNDDOWN(AB189*AE189,4))","v":0}]
[null,"５　そ　　　 の　　　 他",null,null,null,null,null,null,null,null,null,null,null,null,null,null,null,null,null,null,null,null,null,null,null,null,null,{"$f":"IF(ISERROR(Q190/$Q$192),0,ROUNDDOWN(Q190/$Q$192,4))","v":0},null,null,null,null,null,null,null,null,null,null,null,{"$f":"IF(ISERROR(AB190*AE190),0,ROUNDDOWN(AB190*AE190,4))","v":0}]
[null,null,null,"社債・ＣＰ"]
[null,"合　　　　　　計",null,null,null,null,null,null,null,null,null,null,null,null,null,null,{"$f":"SUM(Q186:Q190)","v":0},null,null,null,null,null,null,null,null,null,null,{"$f":"K208","v":"百万円"},null,null,{"$f":"SUM(AN186:AN190)","v":0}]
[null,"自　　　己　　　資　　　金\n（法人の場合は自己資本）"]
[null,null,null,"資　本　金　（法人）"]
[]
[null,null,"（記載上の注意）"]
[null,null,"１","　平均調達金利は、加重平均により、小数点第２位まで記載する。"]
[null,null,"２","　「金融機関」とは、銀行、長期信用銀行、信託銀行、信用金庫、生命保険会社、損害保険会社、外国銀行、信用組合、労働金庫、農業協同組合、漁業協同組合及び政府関係金融機関等をいう。"]
[null,null,"３","　「関係会社」とは、「財務諸表等の用語、様式及び作成方法に関する規則」（昭和38年大蔵省令第59号）第８条第８項における関係会社をいう。"]
[null,null,"４","　「自己資金」とは、資産の合計額より負債の合計額を控除した額をいう。"]
[null,null,"５","　「自己資本」とは、資産の合計額より負債の合計額並びに配当金及び役員賞与金の予定額を控除し、引当金（特別法上の引当金を含む。）の合計額を加えた額をいう。"]
[null,null,"６","　残高は借入当初の元本ではなく、元本の残額を記載する。"]
[]
[]
[null,"７　延滞状況"]
[null,null,null,null,null,"貸付金残高",null,null,null,null,"延　　滞　　残　　高",null,null,null,null,null,null,null,null,null,null,null,null,null,null,null,null,null,null,null,null,"当期貸倒\n損失額",null,null,null,"当期貸倒\n引当金額"]
[null,null,null,null,null,null,null,null,null,null,"1か月以上\n3か月未満",null,null,null,"3か月以上\n6か月未満",null,null,null,"6か月以上\n1年未満",null,null,null,"1年以上",null,null,null,"計"]
[null,"消費者向",null,null,null,null,null,null,null,null,{"$f":"O208","v":"百万円"},null,null,null,{"$f":"S208","v":"百万円"},null,null,null,{"$f":"W208","v":"百万円"},null,null,null,{"$f":"AA208","v":"百万円"},null,null,null,{"$f":"AF208","v":"百万円"},null,null,null,null,{"$f":"AJ208","v":"百万円"},null,null,null,"百万円"]
[null,null,null,null,null,null,null,null,null,null,null,null,null,null,null,null,null,null,null,null,null,null,null,null,null,null,null,{"$f":"SUM(X209)+SUM(T209)+SUM(P209)+SUM(L209)","v":0},null,null,null,null,0,null,null,null,0]
[null,null,null,null,null,null,null,null,null,null,"（",null,null,"）","（",null,null,"）","（",null,null,"）","（",null,null,"）","（",{"$f":"SUM(X210)+SUM(T210)+SUM(P210)+SUM(L210)","v":0},null,null,"）","（",0,null,"）","（",0,null,"）"]
[null,"事業者向",null,null,null,null,null,null,null,null,null,null,null,null,null,null,null,null,null,null,null,null,null,null,null,null,null,{"$f":"SUM(X211)+SUM(T211)+SUM(P211)+SUM(L211)","v":0},null,null,null,null,0,null,null,null,0]
[null,null,null,null,null,null,null,null,null,null,"（",null,null,"）","（",null,null,"）","（",null,null,"）","（",null,null,"）","（",{"$f":"SUM(X212)+SUM(T212)+SUM(P212)+SUM(L212)","v":0},null,null,"）","（",0,null,"）","（",0,null,"）"]
[null,"合　計",null,null,null,{"$f":"F211+F208","v":0},null,null,null,null,null,{"$f":"SUM(L209)+SUM(L211)","v":0},null,null,null,{"$f":"SUM(P211)+SUM(P209)","v":0},null,null,null,{"$f":"SUM(T211)+SUM(T209)","v":0},null,null,null,{"$f":"SUM(X211)+SUM(X209)","v":0},null,null,null,{"$f":"SUM(X213)+SUM(T213)+SUM(P213)+SUM(L213)","v":0},null,null,null,null,{"$f":"SUM(AG211)+SUM(AG209)","v":0},null,null,null,{"$f":"SUM(AK209)+SUM(AK211)","v":0}]
[null,null,null,null,null,null,null,null,null,null,"（",{"$f":"SUM(L212)+SUM(L210)","v":0},null,"）","（",{"$f":"SUM(P212)+SUM(P210)","v":0},null,"）","（",{"$f":"SUM(T212)+SUM(T210)","v":0},null,"）","（",{"$f":"SUM(X212)+SUM(X210)","v":0},null,"）","（",{"$f":"X214+T214+P214+L214","v":0},null,null,"）","（",{"$f":"SUM(AG212)+SUM(AG210)","v":0},null,"）","（",{"$f":"SUM(AK210)+SUM(AK212)","v":0},null,"）"]
[]
[null,null,"（記載上の注意）"]
[null,null,"１","　貸付金残高のうち、返済約定期限経過後１か月以上３か月未満、３か月以上６か月未満、６か月以上１年未満及び１年以上延滞しているものについて、それぞれの区分に従い、延滞残高を記載する。"]
[null,null,"２","　貸付金残高は、償却前の貸付金残高とする。"]
[null,null,"３","　延滞残高については、元本若しくは利息の延滞にかかわらず、契約書に定める期限の利益の喪失事由に該当する場合は、その元本の残高の全てを計上する。（返済方式が一括返済の場合は、貸付金の残高を、割賦返済の場合で残債方式をとっている場合は元本の残額を、また、アドオン方式をとっている場合は、期日到来債権額と債権の残額の合計を延滞額として記載する。）"]
[null,null,"４","　括弧内には、貸付金残高のうち期末において未収利息（資産不計上分を含む。）の発生したもの（未収利息発生後、それぞれ１か月以上３か月未満、３か月以上６か月未満、６か月以上１年未満及び１年以上経過したもの）を記載する。"]
[null,null,"５","　表４の貸付金の担保内訳の残高及び表７の貸付金残高合計について、それぞれの合計額は一致する。"]
[]
[]
[null,"８　指定紛争解決機関との契約締結等の状況"]
[]
[]
[]
[]
[null,null,"（記載上の注意）"]
[null,null,null,"　指定紛争解決機関が存在する場合にあっては手続実施基本契約を締結している指定紛争解決機関の商号又は名称、指定紛争解決機関が存在しない場合にあっては苦情処理措置及び紛争解決措置の内容を記載すること。"]
[]
[null,"９　社内規則等の整備及び改正状況"]
[]
[]
[]
[]
[]
[]
[]
[]
[]
[null,null,"（記載上の注意）"]
[null,null,"１","　策定している社内規則等の名称を記載するとともに、事業年度内に当該規則等の改正を行った場合には、その概要を簡記すること。"]
[null,null,"２","　貸金業協会会員にあっては記載を要しない。"]
[]
[]
[null,"１０　従業者に対する研修の実施状況"]
[]
[]
[]
[]
[]
[]
[]
[]
[]
[null,null,"（記載上の注意）"]
[null,null,"１","　研修の名称、目的、期間、対象者、内容を記載すること。"]
[null,null,"２","　自社が実施した研修について記載することとし、貸金業協会が実施した研修は除くこと。"]
[]
[]
[null,"１１　内部監査の実施状況"]
[]
[]
[]
[]
[]
[]
[]
[]
[]
[]
[]
[null,null,"（記載上の注意）"]
[null,null,"１","　「内部監査」とは、監査部署等による業務監査を指し、外部委託によるものを含み、内部管理の一環としての検査等を含まない。（ただし、内部監査の代替として行う措置がある場合には、当該措置を記載すること。）"]
[null,null,"２","　内部監査において自己検証を行っている場合は、自己検証の記録を添付すること。"]
[null,null,"３","　業務監査の種類ごとに「監査期間」、「監査対象部署」、「監査結果の概要」、「改善策」を記載する。"]

{"sheet":"関係会社の範囲","index":3,"n_rows":56,"n_cols":28,"rows_kept":56,"cut":false,"hidden":false,"merged":[[55,0,55,31],[16,2,17,5],[16,8,17,11],[16,21,17,24],[16,27,17,31],[22,5,23,8],[22,11,23,14],[22,20,23,23],[22,27,23,30],[28,17,29,20],[28,23,29,26],[32,1,36,31],[38,1,53,15],[38,17,53,31],[1,27,1,31],[4,13,5,16],[4,21,5,24],[10,17,11,20],[10,27,11,30]]}
[]
[null,"表１の「関係会社向」けの範囲",null,null,null,null,null,null,null,null,null,null,null,null,null,null,null,null,null,null,null,null,null,null,null,null,null,"「表１」へ戻る"]
[]
[]
[null,null,null,null,null,null,null,null,null,null,null,null,null,"親会社",null,null,null,null,null,null,null,"他の会社"]
[null,null,"（親会社の関係会社）"]
[]
[null,null,null,null,null,null,null,null,null,null,null,null,null,null,null,null,"（子会社）",null,null,null,null,"（関連会社）"]
[]
[]
[null,null,null,null,null,null,null,null,null,null,null,null,null,null,null,null,null,"親会社",null,null,null,null,null,null,null,null,null,"他の会社"]
[]
[]
[null,null,null,null,null,null,null,null,null,null,null,null,null,null,null,null,null,null,null,null,"（子会社）",null,null,null,null,null,null,"（関連会社）"]
[]
[]
[null,null,"関連会社",null,null,null,null,null,"子会社",null,null,null,null,null,null,null,null,null,null,null,null,"提出業者",null,null,null,null,null,"（提出業者の\n関係会社）"]
[]
[]
[null,null,null,null,null,null,null,null,null,null,null,null,null,"（合算）"]
[]
[]
[null,null,null,null,null,"子会社",null,null,null,null,null,"子会社",null,null,null,null,null,null,null,null,"子会社",null,null,null,null,null,null,"関連会社"]
[]
[]
[null,null,null,null,null,null,null,null,null,null,null,null,null,null,null,null,null,null,"（合算）"]
[]
[]
[null,null,null,null,null,null,null,null,null,null,null,null,null,null,null,null,null,"子会社",null,null,null,null,null,"子会社"]
[]
[]
[]
[null,"　「関係会社」とは、提出業者の親会社、子会社及び関連会社並びに提出業者が他の会社等の関連会社\nである場合における当該他の会社等をいう。\n　表１の「関係会社向」の範囲は、業務報告書提出業者の関係会社及び同提出業者の親会社の関係会社\nに対する貸付けとする。（法の規制を受ける貸付けに限る。）"]
[]
[]
[]
[]
[]
[null,"　　　　　　　　　　　　　＜子会社＞\n\n ○ 議決権の過半数を保有\n ○ 議決権の40％以上50％以下を保有する場合\n　　であって、\n　・ 密接な関係（出資、人事、資金等）があり、他の\n　　同一の内容の議決権行使を行う者と併せて\n　　議決権の過半数を保有\n　・ 役員等が当該会社の取締役会等の過半数を\n　　構成\n　・ 重要な事業方針決定を支配する契約等が存在\n　・ 資金調達の総額の過半を融資\n　　等\n",null,null,null,null,null,null,null,null,null,null,null,null,null,null,null,"                        ＜関連会社＞\n\n ○ 議決権の20％以上を保有\n ○ 議決権の15％以上20％未満を保有している\n　　場合であって、\n　・ 役員等が当該会社の意取締役に就任\n　・ 重要な融資を行っている\n　・ 事業方針決定に重要な影響を与えることが\n　　推測される事実が存在　等\n ○ 密接な関係（出資、人事、資金等）があり、\n　　他の同一の内容の議決権行使を行う者と併せ\n　　て議決権の20％以上を保有\n ○ 複数の独立した企業により契約等に基づいて\n　　共同で支配"]
[]
[]
[]
[]
[]
[]
[]
[]
[]
[]
[]
[]
[]
[]
[]
[]
["「財務諸表等の用語、様式及び作成方法に関する規則」（昭和38年大蔵省令第59号）第８条を参照"]

{"sheet":"添付資料①（4.貸付金の担保内訳）記載例および補足説明","index":4,"n_rows":24,"n_cols":11,"rows_kept":24,"cut":false,"hidden":false,"merged":[[0,10,0,11],[12,1,12,2],[17,0,17,12],[18,0,18,12],[23,0,23,12],[1,0,1,12],[4,0,4,12],[8,1,8,2],[9,1,9,2],[10,1,10,2],[11,1,11,2]]}
[null,null,null,null,null,null,null,null,null,null,"様式へ戻る"]
["【記載例および補足説明】"]
[]
["＜複数の物的担保が設定されているケース＞"]
["　2種類以上の担保がある貸付金については、様式に掲げている受入担保の種類の配列順にしたがって、担保の評価額を限度として充当計上する。"]
["　　■事例"]
["　　　貸付金残高2,000万円　物的担保3種類（株式、債権、不動産）"]
[]
["　　","物的担保",null,"契約時の金額","現在評価額","報告書記載額"]
[null,"有価証券（株式）",null,"1,000万円","800万円","800万円"]
[null,"債権（売掛債権）",null,"1,000万円","1,000万円","1,000万円"]
[null,"不動産",null,"5,000万円","2,500万円","200万円"]
[null,"計",null,"7,000万円","4,300万円","2,000万円"]
[]
[]
["＜物的担保と人的担保（保証）の両方が設定されているケース＞"]
["①物的担保は評価額を上限とする範囲内で貸付金残高を記載する。"]
["②物的担保の評価額で貸付金をｶﾊﾞｰできないときは、物的担保の不足分を人的担保（保証）の範囲内で物的担保不足金額を「保証」欄に記載する。"]
["③物的担保の評価額および人的担保（保証）の範囲内でも貸付金をｶﾊﾞｰできないときは、両担保評価の不足分として「無担保｣欄に当該不足金額を記載する。"]
[]
[]
["＜手形割引のケース＞"]
["①貸付残高については、「無担保｣欄に金額を記載する。"]
["②手形割引の残高が貸借対照表（B/S）の資産の部ではなく個別注記されている場合、貸借対照表だけではなく、個別注記も事業報告書に添付する。"]

{"sheet":"添付資料②（4.貸付金の担保内訳）パターン別記載例","index":5,"n_rows":45,"n_cols":10,"rows_kept":45,"cut":false,"hidden":false,"merged":[[0,9,0,10],[38,7,38,11],[3,1,3,2],[4,5,4,6],[13,1,13,2],[14,5,14,6],[15,3,17,3],[23,1,23,2],[9,1,9,3],[19,1,19,3],[24,5,24,6],[28,7,28,11],[33,1,33,2],[34,5,34,6],[39,1,39,3],[42,1,42,2],[42,5,42,6],[44,1,44,3],[29,1,29,3],[35,3,37,3]]}
[null,null,null,null,null,null,null,null,null,"様式へ戻る"]
[null,"＜パターンＡ＞"]
[null,"・貸付金残高2,000万円"]
[null,"物的担保"]
[null,"種別","現状評価額",null,null,"報告書記載金額"]
[null,"有価証券（株式）","800万円",null,null,"有価証券（株式）","800万円"]
[null,"債権（売掛債権）","1,000万円",null,null,"債権（売掛債権）","1,000万円"]
[null,"不動産","2,500万円",null,null,"不動産","200万円"]
[null,"総計","4,300万円",null,null,"合計","2,000万円"]
[null,"※貸付金残高＜物的担保",null,null,null,"※貸付金残高が物的担保の範囲内に収まる"]
[]
[null,"＜パターンＢ＞"]
[null,"・貸付金残高2,000万円"]
[null,"物的担保",null,"人的担保"]
[null,"種別","現状評価額","種別",null,"報告書記載金額"]
[null,"有価証券（株式）","800万円","1,000万円",null,"有価証券（株式）","800万円"]
[null,"債権（売掛債権）","1,000万円",null,null,"債権（売掛債権）","1,000万円"]
[null,"不動産","2,500万円",null,null,"不動産","200万円"]
[null,"総計","4,300万円","1,000万円",null,"合計","2,000万円"]
[null,"※貸付金残高＜物的担保に加え人的担保も付保",null,null,null,"※人的担保（保証）を履行しなくても物的担保で補填できるので保証欄は記載しない"]
[]
[null,"＜パターンＣ＞"]
[null,"・貸付金残高2,000万円"]
[null,"物的担保"]
[null,"種別","現状評価額",null,null,"報告書記載金額"]
[null,"有価証券（株式）","500万円",null,null,"有価証券（株式）","500万円"]
[null,"債権（売掛債権）","800万円",null,null,"債権（売掛債権）","800万円"]
[null,"不動産","500万円",null,null,"不動産","500万円"]
[null,"総計","1,800万円",null,null,"無担保","200万円","※物的担保で貸付金が補填できないｹｰｽは「無担保」欄に記載する"]
[null,"※貸付金残高＞物的担保となり、担保不足",null,null,null,"合計","2,000万円"]
[]
[null,"＜パターンＤ＞"]
[null,"・貸付金残高2,000万円"]
[null,"物的担保",null,"人的担保"]
[null,"種別","現状評価額","種別",null,"報告書記載金額"]
[null,"有価証券（株式）","500万円","1,000万円",null,"有価証券（株式）","500万円"]
[null,"債権（売掛債権）","800万円",null,null,"債権（売掛債権）","800万円"]
[null,"不動産","500万円",null,null,"不動産","500万円"]
[null,"総計","1,800万円","1,000万円",null,"保証","200万円","※物的担保で貸付金が補填できないが、人的担保（保証）でｶﾊﾞｰできる分を「保証」欄に記載する"]
[null,"※貸付金残高＞物的担保となり、物的担保だけでは不足であるが、人的担保が付保",null,null,null,"合計","2,000万円"]
[]
[null,"＜パターンＥ＞　手形割引のケース"]
[null,"・貸付金残高500万円",null,null,null,"報告書記載金額"]
[null,null,null,null,null,"無担保","500万円"]
[null,"※手形割引は「無担保」欄に貸付残高を記載する",null,null,null,"合計","500万円"]